[Event "Titled Tuesday Blitz February 15 Early 2022"]
[White "Khripachenko, Alexander"]
[Black "Ferreira, Vitor Hugo Vieira"]
[WhiteFideId "54184975"]
[BlackFideId "2119765"]
[WhiteElo "2177"]
[BlackElo "2216"]
[Result "0-1"]
[Round "08"]
[TimeControl "180+1"]
[Date "2022.02.15"]
[WhiteClock "0:00:18"]
[BlackClock "0:00:12"]

1. e4 {[%clk 0:03:00]}  c5 {[%clk 0:02:55]} 2. Nf3 {[%clk 0:02:44]}  d6 {[%clk 0:02:55]} 3. d4 {[%clk 0:02:43]}  cxd4 {[%clk 0:02:56]} 4. Qxd4 {[%clk 0:02:44]}  Nc6 {[%clk 0:02:53]} 5. Qe3 {[%clk 0:02:44]}  g6 {[%clk 0:02:52]} 6. h3 {[%clk 0:02:44]}  Bg7 {[%clk 0:02:52]} 7. Be2 {[%clk 0:02:44]}  Nf6 {[%clk 0:02:52]} 8. O-O {[%clk 0:02:45]}  O-O {[%clk 0:02:52]} 9. c4 {[%clk 0:02:45]}  b6 {[%clk 0:02:49]} 10. Nc3 {[%clk 0:02:45]}  Bb7 {[%clk 0:02:49]} 11. Rd1 {[%clk 0:02:46]}  Nd7 {[%clk 0:02:46]} 12. b3 {[%clk 0:02:45]}  Rc8 {[%clk 0:02:45]} 13. Bb2 {[%clk 0:02:45]}  Nde5 {[%clk 0:02:43]} 14. Rac1 {[%clk 0:02:43]}  Nxf3+ {[%clk 0:02:42]} 15. Bxf3 {[%clk 0:02:44]}  Ne5 {[%clk 0:02:42]} 16. Be2 {[%clk 0:02:44]}  Nc6 {[%clk 0:02:33]} 17. Ba1 {[%clk 0:02:42]}  Re8 {[%clk 0:02:24]} 18. Bg4 {[%clk 0:02:42]}  Rb8 {[%clk 0:02:20]} 19. Be2 {[%clk 0:02:40]}  Qc8 {[%clk 0:02:17]} 20. Nd5 {[%clk 0:02:40]}  Ne5 {[%clk 0:02:12]} 21. f4 {[%clk 0:02:35]}  Nd7 {[%clk 0:02:08]} 22. Bxg7 {[%clk 0:02:35]}  Kxg7 {[%clk 0:02:09]} 23. Qd4+ {[%clk 0:02:34]}  Kg8 {[%clk 0:02:09]} 24. Bg4 {[%clk 0:02:33]}  e6 {[%clk 0:01:54]} 25. Nc3 {[%clk 0:02:26]}  Qc5 {[%clk 0:01:52]} 26. Qxc5 {[%clk 0:02:26]}  Nxc5 {[%clk 0:01:52]} 27. Bf3 {[%clk 0:02:26]}  Red8 {[%clk 0:01:46]} 28. b4 {[%clk 0:02:26]}  Na6 {[%clk 0:01:42]} 29. a3 {[%clk 0:02:25]}  Rbc8 {[%clk 0:01:41]} 30. Nb5 {[%clk 0:02:25]}  d5 {[%clk 0:01:38]} 31. exd5 {[%clk 0:02:20]}  exd5 {[%clk 0:01:38]} 32. Nxa7 {[%clk 0:02:21]}  Ra8 {[%clk 0:01:38]} 33. Nb5 {[%clk 0:02:20]}  Rd7 {[%clk 0:01:34]} 34. Bxd5 {[%clk 0:02:18]}  Bxd5 {[%clk 0:01:33]} 35. Rxd5 {[%clk 0:02:18]}  Re7 {[%clk 0:01:32]} 36. Rcd1 {[%clk 0:02:17]}  Re4 {[%clk 0:01:32]} 37. R5d4 {[%clk 0:02:16]}  Rae8 {[%clk 0:01:31]} 38. Nd6 {[%clk 0:02:11]}  Rxd4 {[%clk 0:01:30]} 39. Rxd4 {[%clk 0:02:12]}  Re1+ {[%clk 0:01:29]} 40. Kh2 {[%clk 0:02:12]}  Ra1 {[%clk 0:01:30]} 41. Rd3 {[%clk 0:02:10]}  Nc7 {[%clk 0:01:30]} 42. f5 {[%clk 0:02:07]}  Kg7 {[%clk 0:01:26]} 43. g4 {[%clk 0:02:05]}  Kf6 {[%clk 0:01:25]} 44. Rf3 {[%clk 0:02:04]}  Ke7 {[%clk 0:01:23]} 45. fxg6 {[%clk 0:02:00]}  fxg6 {[%clk 0:01:19]} 46. Ne4 {[%clk 0:01:58]}  Ne6 {[%clk 0:01:13]} 47. Re3 {[%clk 0:01:58]}  Kd7 {[%clk 0:01:03]} 48. Nf6+ {[%clk 0:01:58]}  Kd6 {[%clk 0:01:04]} 49. Nxh7 {[%clk 0:01:53]}  Rc1 {[%clk 0:01:03]} 50. Rd3+ {[%clk 0:01:28]}  Ke5 {[%clk 0:00:59]} 51. Kg3 {[%clk 0:01:10]}  Rxc4 {[%clk 0:00:34]} 52. Re3+ {[%clk 0:01:10]}  Kd6 {[%clk 0:00:33]} 53. Nf6 {[%clk 0:01:08]}  g5 {[%clk 0:00:28]} 54. h4 {[%clk 0:01:03]}  gxh4+ {[%clk 0:00:26]} 55. Kxh4 {[%clk 0:01:04]}  Nf4 {[%clk 0:00:27]} 56. Kg3 {[%clk 0:01:02]}  Ne6 {[%clk 0:00:24]} 57. Rd3+ {[%clk 0:00:55]}  Ke5 {[%clk 0:00:23]} 58. Nd7+ {[%clk 0:00:53]}  Ke4 {[%clk 0:00:24]} 59. Rf3 {[%clk 0:00:47]}  b5 {[%clk 0:00:24]} 60. Nf6+ {[%clk 0:00:44]}  Ke5 {[%clk 0:00:23]} 61. Rf5+ {[%clk 0:00:44]}  Kd6 {[%clk 0:00:23]} 62. Rxb5 {[%clk 0:00:43]}  Rc3+ {[%clk 0:00:21]} 63. Kh4 {[%clk 0:00:43]}  Rxa3 {[%clk 0:00:20]} 64. Ne4+ {[%clk 0:00:41]}  Ke7 {[%clk 0:00:20]} 65. Rb7+ {[%clk 0:00:42]}  Kf8 {[%clk 0:00:20]} 66. g5 {[%clk 0:00:39]}  Nf4 {[%clk 0:00:20]} 67. Kg4 {[%clk 0:00:38]}  Ng6 {[%clk 0:00:20]} 68. Kf5 {[%clk 0:00:37]}  Ne7+ {[%clk 0:00:21]} 69. Ke6 {[%clk 0:00:37]}  Nc6 {[%clk 0:00:21]} 70. g6 {[%clk 0:00:34]}  Nd8+ {[%clk 0:00:21]} 71. Kf6 {[%clk 0:00:30]}  Nxb7 {[%clk 0:00:22]} 72. g7+ {[%clk 0:00:31]}  Kg8 {[%clk 0:00:22]} 73. Ng3 {[%clk 0:00:28]}  Ra6+ {[%clk 0:00:22]} 74. Ke7 {[%clk 0:00:28]}  Kxg7 {[%clk 0:00:22]} 75. Nf5+ {[%clk 0:00:27]}  Kg6 {[%clk 0:00:22]} 76. Nd4 {[%clk 0:00:25]}  Rb6 {[%clk 0:00:22]} 77. b5 {[%clk 0:00:25]}  Nd6 {[%clk 0:00:22]} 78. Nc6 {[%clk 0:00:20]}  Nxb5 {[%clk 0:00:20]} 79. Ne5+ {[%clk 0:00:20]}  Kf5 {[%clk 0:00:20]} 80. Nd7 {[%clk 0:00:21]}  Rb7 {[%clk 0:00:20]} 81. Ke8 {[%clk 0:00:21]}  Nd6+ {[%clk 0:00:16]} 82. Kd8 {[%clk 0:00:21]}  Rb1 {[%clk 0:00:16]} 83. Kc7 {[%clk 0:00:21]}  Nc4 {[%clk 0:00:16]} 84. Nc5 {[%clk 0:00:21]}  Ke5 {[%clk 0:00:16]} 85. Na4 {[%clk 0:00:19]}  Kd4 {[%clk 0:00:14]} 86. Kc6 {[%clk 0:00:18]}  Rb4 {[%clk 0:00:12]} 0-1


[Site "https://www.chess.com"]

[Event "Titled Tuesday Blitz February 15 Early 2022"]
[White "Korchmar, Vasiliy"]
[Black "Stromboli, Ettore"]
[WhiteFideId "24131750"]
[BlackFideId "813761"]
[WhiteElo "2370"]
[BlackElo "2414"]
[Result "1-0"]
[Round "08"]
[TimeControl "180+1"]
[Date "2022.02.15"]
[WhiteClock "0:01:40"]
[BlackClock "0:01:25"]

1. d4 {[%clk 0:03:00]}  Nf6 {[%clk 0:02:57]} 2. Bf4 {[%clk 0:03:00]}  d6 {[%clk 0:02:54]} 3. Nc3 {[%clk 0:02:58]}  g6 {[%clk 0:02:55]} 4. e4 {[%clk 0:02:58]}  Bg7 {[%clk 0:02:53]} 5. Qd2 {[%clk 0:02:57]}  O-O {[%clk 0:02:53]} 6. Bh6 {[%clk 0:02:57]}  Re8 {[%clk 0:02:51]} 7. Bxg7 {[%clk 0:02:56]}  Kxg7 {[%clk 0:02:51]} 8. O-O-O {[%clk 0:02:56]}  e5 {[%clk 0:02:50]} 9. dxe5 {[%clk 0:02:53]}  Rxe5 {[%clk 0:02:49]} 10. f4 {[%clk 0:02:42]}  Re8 {[%clk 0:02:36]} 11. e5 {[%clk 0:02:41]}  Ng4 {[%clk 0:02:31]} 12. h3 {[%clk 0:02:38]}  Nh6 {[%clk 0:02:30]} 13. g4 {[%clk 0:02:36]}  Nc6 {[%clk 0:02:25]} 14. exd6 {[%clk 0:02:34]}  cxd6 {[%clk 0:02:26]} 15. Nf3 {[%clk 0:02:29]}  Qa5 {[%clk 0:02:19]} 16. Bc4 {[%clk 0:02:17]}  Be6 {[%clk 0:02:18]} 17. Bxe6 {[%clk 0:02:12]}  Rxe6 {[%clk 0:02:19]} 18. f5 {[%clk 0:02:12]}  Ree8 {[%clk 0:01:54]} 19. f6+ {[%clk 0:02:11]}  Kxf6 {[%clk 0:01:50]} 20. Qxh6 {[%clk 0:02:12]}  Nb4 {[%clk 0:01:46]} 21. Rxd6+ {[%clk 0:02:04]}  Ke7 {[%clk 0:01:45]} 22. Rhd1 {[%clk 0:01:58]}  Nxa2+ {[%clk 0:01:26]} 23. Nxa2 {[%clk 0:01:59]}  Qxa2 {[%clk 0:01:26]} 24. Rd7+ {[%clk 0:01:53]}  Kf6 {[%clk 0:01:26]} 25. R1d6+ {[%clk 0:01:41]}  Re6 {[%clk 0:01:25]} 26. Qf4+ {[%clk 0:01:40]} 1-0


[Site "https://www.chess.com"]

[Event "Titled Tuesday Blitz February 15 Early 2022"]
[White "Korkmaz, Necmettin"]
[Black "Aradhya, Garg"]
[WhiteFideId "6303285"]
[BlackFideId "25006746"]
[WhiteElo "2094"]
[BlackElo "2169"]
[Result "0-1"]
[Round "08"]
[TimeControl "180+1"]
[Date "2022.02.15"]
[WhiteClock "0:01:01"]
[BlackClock "0:02:21"]

1. e4 {[%clk 0:03:00]}  e5 {[%clk 0:02:59]} 2. Nf3 {[%clk 0:02:55]}  Nc6 {[%clk 0:03:00]} 3. d4 {[%clk 0:02:50]}  exd4 {[%clk 0:02:59]} 4. Bc4 {[%clk 0:02:51]}  Nf6 {[%clk 0:02:58]} 5. O-O {[%clk 0:02:51]}  Nxe4 {[%clk 0:02:58]} 6. Re1 {[%clk 0:02:51]}  d5 {[%clk 0:02:58]} 7. Bxd5 {[%clk 0:02:52]}  Qxd5 {[%clk 0:02:59]} 8. Nc3 {[%clk 0:02:52]}  Qh5 {[%clk 0:03:00]} 9. Nxe4 {[%clk 0:02:53]}  Be6 {[%clk 0:03:00]} 10. Bg5 {[%clk 0:02:53]}  Bd6 {[%clk 0:03:00]} 11. h4 {[%clk 0:02:52]}  h6 {[%clk 0:02:53]} 12. Bf6 {[%clk 0:02:29]}  O-O {[%clk 0:02:53]} 13. Nxd6 {[%clk 0:02:19]}  cxd6 {[%clk 0:02:50]} 14. Bxd4 {[%clk 0:02:19]}  Bg4 {[%clk 0:02:48]} 15. Re3 {[%clk 0:02:05]}  Rfe8 {[%clk 0:02:44]} 16. Qd2 {[%clk 0:01:35]}  Rxe3 {[%clk 0:02:40]} 17. Bxe3 {[%clk 0:01:35]}  Bxf3 {[%clk 0:02:40]} 18. gxf3 {[%clk 0:01:35]}  Ne5 {[%clk 0:02:40]} 19. Qxd6 {[%clk 0:01:32]}  Nxf3+ {[%clk 0:02:40]} 20. Kg2 {[%clk 0:01:32]}  Nxh4+ {[%clk 0:02:39]} 21. Kf1 {[%clk 0:01:28]}  Nf5 {[%clk 0:02:35]} 22. Qd1 {[%clk 0:01:18]}  Qh3+ {[%clk 0:02:22]} 23. Ke2 {[%clk 0:01:13]}  Re8 {[%clk 0:02:23]} 24. Qd3 {[%clk 0:01:04]}  Nxe3 {[%clk 0:02:21]} 25. fxe3 {[%clk 0:01:05]}  Qg2+ {[%clk 0:02:21]} 26. Ke1 {[%clk 0:01:02]}  Qg1+ {[%clk 0:02:22]} 27. Kd2 {[%clk 0:01:01]}  Qxa1 {[%clk 0:02:21]} 0-1


[Site "https://www.chess.com"]

[Event "Titled Tuesday Blitz February 15 Early 2022"]
[White "Kretov, Evgenij"]
[Black "Omariev, Maksim"]
[WhiteFideId "4167821"]
[BlackFideId "4193423"]
[WhiteElo "2303"]
[BlackElo "2521"]
[Result "1-0"]
[Round "08"]
[TimeControl "180+1"]
[Date "2022.02.15"]
[WhiteClock "0:01:18"]
[BlackClock "0:00:01"]

1. d4 {[%clk 0:03:00]}  d5 {[%clk 0:02:59]} 2. c4 {[%clk 0:03:01]}  e6 {[%clk 0:02:59]} 3. Nc3 {[%clk 0:03:01]}  Nf6 {[%clk 0:02:59]} 4. cxd5 {[%clk 0:03:01]}  exd5 {[%clk 0:02:59]} 5. Bg5 {[%clk 0:03:02]}  c6 {[%clk 0:02:59]} 6. e3 {[%clk 0:03:01]}  Be7 {[%clk 0:02:57]} 7. Bd3 {[%clk 0:03:01]}  Bg4 {[%clk 0:02:57]} 8. Qc2 {[%clk 0:03:02]}  Bh5 {[%clk 0:02:56]} 9. Nf3 {[%clk 0:02:59]}  Bg6 {[%clk 0:02:56]} 10. O-O {[%clk 0:02:57]}  Nbd7 {[%clk 0:02:53]} 11. Rab1 {[%clk 0:02:53]}  a5 {[%clk 0:02:52]} 12. Ne5 {[%clk 0:02:47]}  Nxe5 {[%clk 0:02:45]} 13. dxe5 {[%clk 0:02:47]}  Nd7 {[%clk 0:02:46]} 14. Bxe7 {[%clk 0:02:46]}  Qxe7 {[%clk 0:02:47]} 15. f4 {[%clk 0:02:44]}  Bxd3 {[%clk 0:02:37]} 16. Qxd3 {[%clk 0:02:44]}  b5 {[%clk 0:01:31]} 17. Ne2 {[%clk 0:02:15]}  O-O {[%clk 0:01:20]} 18. Nd4 {[%clk 0:02:14]}  Rfc8 {[%clk 0:01:05]} 19. Nf5 {[%clk 0:02:11]}  Qe6 {[%clk 0:00:59]} 20. Rbc1 {[%clk 0:02:07]}  c5 {[%clk 0:00:48]} 21. Nd6 {[%clk 0:02:05]}  Rcb8 {[%clk 0:00:29]} 22. Rcd1 {[%clk 0:02:04]}  Nb6 {[%clk 0:00:04]} 23. Qxb5 {[%clk 0:01:54]}  Nc4 {[%clk 0:00:02]} 24. Qxc5 {[%clk 0:01:54]}  Nxb2 {[%clk 0:00:02]} 25. Rxd5 {[%clk 0:01:49]}  Na4 {[%clk 0:00:02]} 26. Qc6 {[%clk 0:01:26]}  Nb6 {[%clk 0:00:02]} 27. Rb5 {[%clk 0:01:23]}  Nd7 {[%clk 0:00:01]} 28. Rfb1 {[%clk 0:01:18]} 1-0


[Site "https://www.chess.com"]

[Event "Titled Tuesday Blitz February 15 Early 2022"]
[White "Krstulovic, Alex"]
[Black "Tuleyeva-Aketayeva, Dana"]
[WhiteFideId "760056"]
[BlackFideId "13701932"]
[WhiteElo "2193"]
[BlackElo "1944"]
[Result "1-0"]
[Round "08"]
[TimeControl "180+1"]
[Date "2022.02.15"]
[WhiteClock "0:01:43"]
[BlackClock "0:00:02"]

1. d4 {[%clk 0:03:00]}  Nf6 {[%clk 0:02:59]} 2. e4 {[%clk 0:03:01]}  Nxe4 {[%clk 0:02:58]} 3. Nf3 {[%clk 0:02:57]}  Nf6 {[%clk 0:02:57]} 4. d5 {[%clk 0:02:56]}  e6 {[%clk 0:02:57]} 5. c4 {[%clk 0:02:56]}  exd5 {[%clk 0:02:54]} 6. cxd5 {[%clk 0:02:57]}  Bb4+ {[%clk 0:02:52]} 7. Nc3 {[%clk 0:02:56]}  Qe7+ {[%clk 0:02:48]} 8. Be2 {[%clk 0:02:54]}  Ne4 {[%clk 0:02:47]} 9. Qd4 {[%clk 0:02:48]}  Bxc3+ {[%clk 0:02:07]} 10. bxc3 {[%clk 0:02:49]}  Nf6 {[%clk 0:02:07]} 11. Bg5 {[%clk 0:02:41]}  h6 {[%clk 0:02:05]} 12. Bh4 {[%clk 0:02:39]}  d6 {[%clk 0:01:58]} 13. O-O {[%clk 0:02:38]}  O-O {[%clk 0:01:48]} 14. Bd3 {[%clk 0:02:38]}  c5 {[%clk 0:01:32]} 15. Qf4 {[%clk 0:02:34]}  Nbd7 {[%clk 0:00:56]} 16. Rae1 {[%clk 0:02:33]}  Ne5 {[%clk 0:00:43]} 17. Nxe5 {[%clk 0:02:31]}  dxe5 {[%clk 0:00:43]} 18. Rxe5 {[%clk 0:02:30]}  Qd6 {[%clk 0:00:44]} 19. Bxf6 {[%clk 0:02:28]}  Qxf6 {[%clk 0:00:38]} 20. Qxf6 {[%clk 0:02:27]}  gxf6 {[%clk 0:00:38]} 21. Re7 {[%clk 0:02:27]}  b6 {[%clk 0:00:31]} 22. Rfe1 {[%clk 0:02:23]}  Bg4 {[%clk 0:00:20]} 23. Bb5 {[%clk 0:02:16]}  Rad8 {[%clk 0:00:19]} 24. Bc6 {[%clk 0:02:16]}  Bf5 {[%clk 0:00:18]} 25. Rxa7 {[%clk 0:02:10]}  Rd6 {[%clk 0:00:17]} 26. Ree7 {[%clk 0:02:09]}  Bc2 {[%clk 0:00:15]} 27. h3 {[%clk 0:02:06]}  Bd3 {[%clk 0:00:14]} 28. Re3 {[%clk 0:02:04]}  Bc4 {[%clk 0:00:14]} 29. Rf3 {[%clk 0:01:53]}  Bxd5 {[%clk 0:00:13]} 30. Bxd5 {[%clk 0:01:53]}  Rxd5 {[%clk 0:00:13]} 31. Rxf6 {[%clk 0:01:53]}  Rd1+ {[%clk 0:00:12]} 32. Kh2 {[%clk 0:01:53]}  b5 {[%clk 0:00:12]} 33. Rxh6 {[%clk 0:01:53]}  Rd2 {[%clk 0:00:11]} 34. Rh5 {[%clk 0:01:53]}  c4 {[%clk 0:00:09]} 35. Rg5+ {[%clk 0:01:50]}  Kh7 {[%clk 0:00:09]} 36. Rf5 {[%clk 0:01:49]}  Rd3 {[%clk 0:00:08]} 37. Rfxf7+ {[%clk 0:01:45]}  Rxf7 {[%clk 0:00:09]} 38. Rxf7+ {[%clk 0:01:46]}  Kg6 {[%clk 0:00:10]} 39. Rb7 {[%clk 0:01:46]}  Rxc3 {[%clk 0:00:10]} 40. Rxb5 {[%clk 0:01:46]}  Rc2 {[%clk 0:00:10]} 41. Rc5 {[%clk 0:01:46]}  c3 {[%clk 0:00:09]} 42. a4 {[%clk 0:01:45]}  Rc1 {[%clk 0:00:08]} 43. a5 {[%clk 0:01:45]}  c2 {[%clk 0:00:09]} 44. a6 {[%clk 0:01:45]}  Kf6 {[%clk 0:00:07]} 45. a7 {[%clk 0:01:45]}  Ra1 {[%clk 0:00:05]} 46. Rxc2 {[%clk 0:01:45]}  Rxa7 {[%clk 0:00:05]} 47. g4 {[%clk 0:01:45]}  Kg5 {[%clk 0:00:04]} 48. Kg3 {[%clk 0:01:44]}  Ra3+ {[%clk 0:00:03]} 49. f3 {[%clk 0:01:44]}  Rc3 {[%clk 0:00:02]} 50. Rxc3 {[%clk 0:01:43]} 1-0


[Site "https://www.chess.com"]

[Event "Titled Tuesday Blitz February 15 Early 2022"]
[White "Kuzmin, Roman"]
[Black "Deuer, Marius"]
[WhiteFideId "44134932"]
[BlackFideId "16236432"]
[WhiteElo "1978"]
[BlackElo "2091"]
[Result "1-0"]
[Round "08"]
[TimeControl "180+1"]
[Date "2022.02.15"]
[WhiteClock "0:02:09"]
[BlackClock "0:00:33"]

1. e4 {[%clk 0:03:00]}  b6 {[%clk 0:03:00]} 2. d4 {[%clk 0:03:00]}  Bb7 {[%clk 0:03:01]} 3. Nc3 {[%clk 0:03:00]}  e6 {[%clk 0:03:01]} 4. Be3 {[%clk 0:03:00]}  Nf6 {[%clk 0:03:00]} 5. f3 {[%clk 0:03:00]}  d5 {[%clk 0:02:59]} 6. e5 {[%clk 0:03:00]}  Nfd7 {[%clk 0:02:59]} 7. Nce2 {[%clk 0:03:01]}  c5 {[%clk 0:02:59]} 8. c3 {[%clk 0:03:02]}  Nc6 {[%clk 0:02:59]} 9. f4 {[%clk 0:03:01]}  f6 {[%clk 0:02:59]} 10. Nf3 {[%clk 0:03:00]}  cxd4 {[%clk 0:02:58]} 11. cxd4 {[%clk 0:02:58]}  Bb4+ {[%clk 0:02:58]} 12. Bd2 {[%clk 0:02:57]}  fxe5 {[%clk 0:02:48]} 13. fxe5 {[%clk 0:02:53]}  O-O {[%clk 0:02:24]} 14. Ng3 {[%clk 0:02:52]}  Rxf3 {[%clk 0:02:16]} 15. gxf3 {[%clk 0:02:52]}  Bxd2+ {[%clk 0:02:12]} 16. Qxd2 {[%clk 0:02:52]}  Qh4 {[%clk 0:02:13]} 17. O-O-O {[%clk 0:02:46]}  a5 {[%clk 0:02:12]} 18. Bb5 {[%clk 0:02:41]}  Nf8 {[%clk 0:02:05]} 19. f4 {[%clk 0:02:34]}  Nb4 {[%clk 0:01:56]} 20. a3 {[%clk 0:02:31]}  Bc6 {[%clk 0:01:23]} 21. Bxc6 {[%clk 0:02:27]}  Nxc6 {[%clk 0:01:24]} 22. Kb1 {[%clk 0:02:23]}  a4 {[%clk 0:01:08]} 23. Rhf1 {[%clk 0:02:19]}  Na5 {[%clk 0:00:54]} 24. f5 {[%clk 0:02:17]}  Nc4 {[%clk 0:00:53]} 25. Qf4 {[%clk 0:02:10]}  Qxh2 {[%clk 0:00:36]} 26. Rf2 {[%clk 0:02:09]}  Qh3 {[%clk 0:00:33]} 27. Rh1 {[%clk 0:02:09]} 1-0


[Site "https://www.chess.com"]

[Event "Titled Tuesday Blitz February 15 Early 2022"]
[White "Leve, Nitai"]
[Black "Gontcharov, Vladislav"]
[WhiteFideId "2006898"]
[BlackFideId "4123492"]
[WhiteElo "2144"]
[BlackElo "2503"]
[Result "1-0"]
[Round "08"]
[TimeControl "180+1"]
[Date "2022.02.15"]
[WhiteClock "0:00:03"]
[BlackClock "0:00:01"]

1. e4 {[%clk 0:03:00]}  e6 {[%clk 0:02:59]} 2. d4 {[%clk 0:03:00]}  d5 {[%clk 0:02:59]} 3. e5 {[%clk 0:02:57]}  c5 {[%clk 0:02:58]} 4. c3 {[%clk 0:02:57]}  Nc6 {[%clk 0:02:59]} 5. Nf3 {[%clk 0:02:57]}  Nge7 {[%clk 0:03:00]} 6. Bd3 {[%clk 0:02:55]}  cxd4 {[%clk 0:02:58]} 7. cxd4 {[%clk 0:02:56]}  Nf5 {[%clk 0:02:57]} 8. Bxf5 {[%clk 0:02:53]}  exf5 {[%clk 0:02:57]} 9. Nc3 {[%clk 0:02:54]}  Be6 {[%clk 0:02:57]} 10. O-O {[%clk 0:02:54]}  h6 {[%clk 0:02:57]} 11. Rb1 {[%clk 0:02:51]}  Be7 {[%clk 0:02:56]} 12. b4 {[%clk 0:02:50]}  Bxb4 {[%clk 0:02:55]} 13. Qd3 {[%clk 0:02:41]}  Rb8 {[%clk 0:02:27]} 14. Nb5 {[%clk 0:02:25]}  a6 {[%clk 0:02:15]} 15. Nc3 {[%clk 0:02:18]}  O-O {[%clk 0:02:11]} 16. Ne2 {[%clk 0:02:17]}  Qe7 {[%clk 0:02:02]} 17. Ng3 {[%clk 0:02:14]}  Qd7 {[%clk 0:01:53]} 18. Nh4 {[%clk 0:02:12]}  f4 {[%clk 0:01:41]} 19. Nh5 {[%clk 0:01:31]}  Be7 {[%clk 0:01:36]} 20. Nf3 {[%clk 0:01:12]}  Bf5 {[%clk 0:01:35]} 21. Qb3 {[%clk 0:01:12]}  Bxb1 {[%clk 0:01:31]} 22. Qxb1 {[%clk 0:01:13]}  Nd8 {[%clk 0:00:56]} 23. Bxf4 {[%clk 0:01:06]}  Ne6 {[%clk 0:00:56]} 24. Be3 {[%clk 0:00:55]}  Rfc8 {[%clk 0:00:54]} 25. Qf5 {[%clk 0:00:50]}  Nf8 {[%clk 0:00:51]} 26. Qf4 {[%clk 0:00:50]}  Ng6 {[%clk 0:00:45]} 27. Qg3 {[%clk 0:00:48]}  Rc3 {[%clk 0:00:44]} 28. Bd2 {[%clk 0:00:46]}  Ra3 {[%clk 0:00:40]} 29. e6 {[%clk 0:00:46]}  Bd6 {[%clk 0:00:20]} 30. exd7 {[%clk 0:00:44]}  Bxg3 {[%clk 0:00:20]} 31. Nxg3 {[%clk 0:00:44]}  Rd8 {[%clk 0:00:20]} 32. Re1 {[%clk 0:00:28]}  Rxd7 {[%clk 0:00:20]} 33. Re8+ {[%clk 0:00:24]}  Kh7 {[%clk 0:00:19]} 34. h4 {[%clk 0:00:25]}  Rxa2 {[%clk 0:00:17]} 35. h5 {[%clk 0:00:21]}  Ne7 {[%clk 0:00:17]} 36. Ne5 {[%clk 0:00:18]}  Rc7 {[%clk 0:00:15]} 37. Nxf7 {[%clk 0:00:14]}  Ng8 {[%clk 0:00:13]} 38. Ne5 {[%clk 0:00:05]}  Rxd2 {[%clk 0:00:12]} 39. Nf5 {[%clk 0:00:05]}  Rc1+ {[%clk 0:00:03]} 40. Kh2 {[%clk 0:00:05]}  Rxf2 {[%clk 0:00:04]} 41. Nh4 {[%clk 0:00:02]}  Rf4 {[%clk 0:00:02]} 42. Neg6 {[%clk 0:00:02]}  Rf6 {[%clk 0:00:02]} 43. Nf8+ {[%clk 0:00:03]}  Rxf8 {[%clk 0:00:01]} 44. Rxf8 {[%clk 0:00:03]} 1-0


[Site "https://www.chess.com"]

[Event "Titled Tuesday Blitz February 15 Early 2022"]
[White "Mamedyarov, Shakhriyar"]
[Black "Jumabayev, Rinat"]
[WhiteFideId "13401319"]
[BlackFideId "13702661"]
[WhiteElo "2769"]
[BlackElo "2561"]
[Result "0-1"]
[Round "08"]
[TimeControl "180+1"]
[Date "2022.02.15"]
[WhiteClock "0:00:02"]
[BlackClock "0:00:12"]

1. d4 {[%clk 0:03:00]}  e6 {[%clk 0:03:00]} 2. c4 {[%clk 0:02:58]}  d5 {[%clk 0:02:59]} 3. Nc3 {[%clk 0:02:58]}  Nf6 {[%clk 0:03:00]} 4. Nf3 {[%clk 0:02:57]}  Nbd7 {[%clk 0:02:59]} 5. cxd5 {[%clk 0:02:54]}  exd5 {[%clk 0:02:59]} 6. Bg5 {[%clk 0:02:54]}  Be7 {[%clk 0:02:58]} 7. e3 {[%clk 0:02:54]}  c6 {[%clk 0:02:59]} 8. Bd3 {[%clk 0:02:53]}  O-O {[%clk 0:02:33]} 9. Qc2 {[%clk 0:02:53]}  Re8 {[%clk 0:02:32]} 10. Bf4 {[%clk 0:02:52]}  Nf8 {[%clk 0:02:26]} 11. O-O-O {[%clk 0:02:48]}  b5 {[%clk 0:02:06]} 12. Ne5 {[%clk 0:02:46]}  Bd7 {[%clk 0:02:06]} 13. g4 {[%clk 0:02:38]}  g6 {[%clk 0:01:30]} 14. h4 {[%clk 0:02:20]}  Nxg4 {[%clk 0:01:20]} 15. Nxd7 {[%clk 0:02:19]}  Qxd7 {[%clk 0:01:19]} 16. h5 {[%clk 0:02:19]}  Bd6 {[%clk 0:01:13]} 17. hxg6 {[%clk 0:02:12]}  fxg6 {[%clk 0:01:12]} 18. Bxd6 {[%clk 0:02:07]}  Qxd6 {[%clk 0:01:12]} 19. Rdg1 {[%clk 0:02:07]}  Nf6 {[%clk 0:01:00]} 20. Ne2 {[%clk 0:01:49]}  Re7 {[%clk 0:00:37]} 21. Nf4 {[%clk 0:01:48]}  Rg7 {[%clk 0:00:37]} 22. Rh6 {[%clk 0:01:43]}  Re8 {[%clk 0:00:35]} 23. Kb1 {[%clk 0:01:43]}  Ne4 {[%clk 0:00:35]} 24. f3 {[%clk 0:01:36]}  Nf6 {[%clk 0:00:35]} 25. Qf2 {[%clk 0:01:35]}  Qe7 {[%clk 0:00:32]} 26. Qh4 {[%clk 0:01:34]}  N6d7 {[%clk 0:00:28]} 27. Qg3 {[%clk 0:01:04]}  Qxe3 {[%clk 0:00:27]} 28. Bc2 {[%clk 0:00:50]}  Qxd4 {[%clk 0:00:21]} 29. Rhh1 {[%clk 0:00:46]}  Ree7 {[%clk 0:00:19]} 30. a3 {[%clk 0:00:44]}  Qf6 {[%clk 0:00:18]} 31. Rh6 {[%clk 0:00:40]}  Ne5 {[%clk 0:00:18]} 32. Nh5 {[%clk 0:00:39]}  Qxf3 {[%clk 0:00:18]} 33. Nxg7 {[%clk 0:00:18]}  Qxg3 {[%clk 0:00:19]} 34. Rxg3 {[%clk 0:00:18]}  Kxg7 {[%clk 0:00:19]} 35. Rh1 {[%clk 0:00:19]}  Nc4 {[%clk 0:00:20]} 36. Rgh3 {[%clk 0:00:17]}  a5 {[%clk 0:00:20]} 37. Bd3 {[%clk 0:00:17]}  Ne5 {[%clk 0:00:19]} 38. Bc2 {[%clk 0:00:17]}  a4 {[%clk 0:00:20]} 39. Re3 {[%clk 0:00:16]}  Nfd7 {[%clk 0:00:18]} 40. Rhe1 {[%clk 0:00:16]}  d4 {[%clk 0:00:17]} 41. Re4 {[%clk 0:00:16]}  c5 {[%clk 0:00:17]} 42. b3 {[%clk 0:00:16]}  axb3 {[%clk 0:00:17]} 43. Bxb3 {[%clk 0:00:17]}  c4 {[%clk 0:00:18]} 44. Bd1 {[%clk 0:00:16]}  d3 {[%clk 0:00:18]} 45. Bg4 {[%clk 0:00:17]}  Kf6 {[%clk 0:00:17]} 46. Bxd7 {[%clk 0:00:16]}  Rxd7 {[%clk 0:00:16]} 47. Rf1+ {[%clk 0:00:11]}  Ke6 {[%clk 0:00:16]} 48. Rfe1 {[%clk 0:00:11]}  Rd5 {[%clk 0:00:16]} 49. Rh4 {[%clk 0:00:10]}  c3 {[%clk 0:00:15]} 50. Rf1 {[%clk 0:00:04]}  h5 {[%clk 0:00:13]} 51. Rb4 {[%clk 0:00:03]}  Kd6 {[%clk 0:00:13]} 52. a4 {[%clk 0:00:03]}  bxa4 {[%clk 0:00:13]} 53. Rxa4 {[%clk 0:00:04]}  Nc6 {[%clk 0:00:12]} 54. Kc1 {[%clk 0:00:04]}  Kc5 {[%clk 0:00:12]} 55. Ra6 {[%clk 0:00:03]}  Nb4 {[%clk 0:00:12]} 56. Ra5+ {[%clk 0:00:03]}  Kc4 {[%clk 0:00:12]} 57. Rf4+ {[%clk 0:00:03]}  Rd4 {[%clk 0:00:11]} 58. Rxd4+ {[%clk 0:00:02]}  Kxd4 {[%clk 0:00:11]} 59. Rg5 {[%clk 0:00:02]}  d2+ {[%clk 0:00:12]} 60. Kd1 {[%clk 0:00:03]}  Nd3 {[%clk 0:00:12]} 61. Kc2 {[%clk 0:00:01]}  Nf2 {[%clk 0:00:11]} 62. Rg1 {[%clk 0:00:01]}  d1=Q+ {[%clk 0:00:11]} 63. Rxd1+ {[%clk 0:00:01]}  Nxd1 {[%clk 0:00:12]} 64. Kb3 {[%clk 0:00:02]}  Ne3 {[%clk 0:00:12]} 0-1


[Site "https://www.chess.com"]